fUSD/lending_fUSD_20240301
["ID","MTS","AMOUNT","RATE_DAILY","PERIOD"]
[315967447,1709305895206,-500.0,0.00022794,2]
[315967448,1709305895215,-1531.1,0.00022794,2]
[315967449,1709305895225,-1199.02,0.00022794,2]
[315967450,1709305895235,-1053.76,0.00022794,2]
[315967451,1709305895245,-880.94,0.00022794,2]
[315967452,1709305895254,-7052.62,0.00022794,2]
[315967453,1709305895264,-793.6,0.00022794,2]
[315967454,1709305895275,-4970.95,0.00022794,2]
[315967455,1709305895287,-567.08,0.00022794,2]
[315967456,1709305895297,-500.0,0.00022794,2]
[315967457,1709305895307,-1404.44,0.00022794,2]
[315967458,1709305895317,-1716.84,0.00022794,2]
[315967459,1709305895327,-1301.46,0.00022794,2]
[315967460,1709305895337,-632.56,0.00022794,2]
[315967461,1709305895348,-844.86,0.00022794,2]
[315967462,1709305895358,-1873.71,0.00022794,2]
[315967463,1709305895371,-500.0,0.00022794,2]
[315967464,1709305895382,-1094.87,0.00022794,2]
[315967465,1709305895392,-543.71,0.00022794,2]
[315967466,1709305895402,-1348.78,0.00022794,2]
[315967467,1709305895412,-1253.26,0.00022794,2]
[315967468,1709305895422,-517.7,0.00022794,2]
[315967469,1709305895432,-829.71,0.00022794,2]
[315967470,1709305895442,-1978.87,0.00022794,2]
[315967471,1709305895453,-644.52685724,0.00022794,2]
[315967472,1709305895463,-500.0,0.00022794,2]
[315967473,1709305895473,-5780.97,0.00022794,2]
[315967474,1709305895484,-500.0,0.00022794,2]
[315967475,1709305895494,-1128.32,0.00022794,2]
[315967476,1709305895504,-1360.34,0.00022794,2]
[315967477,1709305895514,-595.79,0.00022794,2]
[315967478,1709305895524,-503.67,0.00022794,2]
[315967479,1709305895537,-900.35,0.00022794,2]
[315967480,1709305895547,-543.27,0.00022794,2]
[315967481,1709305895557,-151.0,0.00022794,7]
[315967482,1709305895567,-500.0,0.00022794,2]
[315967483,1709305895578,-500.0,0.00022794,2]
[315967484,1709305895588,-655.83,0.00022794,2]
[315967485,1709305895598,-540.91,0.00022794,2]
[315967486,1709305895608,-758.75,0.00022794,2]
[315967487,1709305895620,-1186.06,0.00022794,2]
[315967488,1709305895631,-1195.58,0.00022794,2]
[315967489,1709305895642,-817.92,0.00022794,2]
[315967490,1709305895652,-1397.92,0.00022794,2]
[315967491,1709305895663,-947.48,0.00022794,2]
[315967492,1709305895674,-500.0,0.00022794,2]
[315967493,1709305895685,-889.25,0.00022794,2]
[315967494,1709305895695,-200.45243809,0.00022794,2]
[315967495,1709305895706,-558.86,0.00022794,2]
[315967496,1709305895717,-654.16,0.00022794,2]
[315967497,1709305895727,-508.24,0.00022794,2]
[315967498,1709305895738,-886.02,0.00022794,2]
[315967499,1709305895748,-928.68,0.00022794,2]
[315967500,1709305895939,-500.0,0.00022794,2]
[315967501,1709305895951,-1331.87,0.00022794,2]
[315967502,1709305895962,-500.0,0.00022794,2]
[315967503,1709305895972,-2216.85,0.00022794,2]
[315967504,1709305895982,-1288.14,0.00022794,2]
[315967505,1709305895992,-1254.88,0.00022794,2]
[315967506,1709305896002,-500.0,0.00022794,2]
[315967507,1709305896012,-782.75,0.00022794,2]
[315967508,1709305896022,-500.0,0.00022794,2]
[315967509,1709305896032,-641.49,0.00022794,2]
[315967510,1709305896042,-1350.32,0.00022794,2]
[315967511,1709305896052,-985.98,0.00022794,2]
[315967512,1709305896061,-1905.1,0.00022794,2]
[315967513,1709305896072,-1197.98,0.00022794,2]
[315967514,1709305896083,-500.0,0.00022794,2]
[315967515,1709305896093,-1184.73,0.00022794,2]
[315967516,1709305896104,-500.0,0.00022794,2]
[315967517,1709305896114,-500.0,0.00022794,2]
[315967518,1709305896124,-934.94,0.00022794,2]
[315967519,1709305896134,-3329.36,0.00022794,2]
[315967520,1709305896144,-1905.59,0.00022794,2]
[315967521,1709305896154,-500.0,0.00022794,2]
[315967522,1709305896168,-500.0,0.00022794,2]
[315967523,1709305896178,-830.59,0.00022794,2]
[315967524,1709305896189,-555.78,0.00022794,2]
[315967525,1709305896199,-528.51,0.00022794,2]
[315967526,1709305896210,-1574.86,0.00022794,2]
[315967527,1709305896221,-1148.67,0.00022794,2]
[315967528,1709305896231,-500.0,0.00022794,2]
[315967529,1709305896241,-924.56,0.00022794,2]
[315967530,1709305896251,-765.51,0.00022794,2]
[315967531,1709305896261,-1684.51,0.00022794,2]
[315967532,1709305896272,-500.0,0.00022794,2]
[315967533,1709305896284,-604.09,0.00022794,2]
[315967534,1709305896294,-500.0,0.00022794,2]
[315967535,1709305896304,-878.61,0.00022794,2]
[315967536,1709305896315,-873.4,0.00022794,2]
[315967537,1709305896325,-847.29,0.00022794,2]
[315967538,1709305896336,-983.47,0.00022794,2]
[315967539,1709305896347,-1114.24,0.00022794,2]
[315967540,1709305896358,-721.29,0.00022794,2]
[315967541,1709305896368,-1667.9,0.00022794,2]
[315967542,1709305896381,-1455.8,0.00022794,2]
[315967543,1709305896392,-500.0,0.00022794,2]
[315967544,1709305896402,-500.0,0.00022794,2]
[315967545,1709305896412,-451.46591264,0.00022794,2]
[315967546,1709305896423,-500.0,0.00022794,2]
[315967547,1709305896433,-511.84827813,0.00022794,2]
[315967548,1709305896444,-500.0,0.00022794,2]
[315967549,1709305896454,-631.77,0.00022794,2]
[315967550,1709305896464,-5562.59,0.00022794,2]
[315967551,1709305896474,-500.0,0.00022794,2]
[315967552,1709305896485,-500.0,0.00022794,2]
[315967553,1709305896496,-5893.85,0.00022794,2]
[315967554,1709305896506,-2262.48,0.00022794,2]
[315967555,1709305896517,-500.0,0.00022794,2]
[315967556,1709305896531,-500.0,0.00022794,2]
[315967557,1709305896542,-506.63,0.00022794,2]
[315967558,1709305896553,-500.0,0.00022794,2]
[315967559,1709305896563,-500.0,0.00022794,2]
[315967560,1709305896573,-500.0,0.00022794,2]
[315967561,1709305896583,-634.29,0.00022794,2]
[315967562,1709305896594,-724.63,0.00022794,2]
[315967563,1709305896604,-500.0,0.00022794,2]
[315967564,1709305896614,-7099.15,0.00022794,2]
[315967565,1709305896624,-557.5,0.00022794,2]
[315967566,1709305896634,-500.0,0.00022794,2]
[315967567,1709305896644,-500.0,0.00022794,2]
[315967568,1709305896654,-900.57,0.00022794,2]
[315967569,1709305896664,-1628.31,0.00022794,2]
[315967570,1709305896674,-500.0,0.00022794,2]
[315967571,1709305896684,-1308.47,0.00022794,2]
[315967572,1709305896694,-510.08,0.00022794,2]
[315967573,1709305896704,-5514.48,0.00022794,2]
[315967574,1709305896713,-500.0,0.00022794,2]
[315967575,1709305896723,-500.0,0.00022794,2]
[315967576,1709305896732,-1631.28,0.00022794,2]
[315967577,1709305896742,-1607.91,0.00022794,2]
[315967578,1709305896751,-1979.13,0.00022794,2]
[315967579,1709305896761,-920.03,0.00022794,2]
[315967580,1709305896770,-500.0,0.00022794,2]
[315967581,1709305896782,-399.17924066,0.00022794,2]
[315967582,1709305896792,-500.0,0.00022794,2]
[315967583,1709305896801,-691.36,0.00022794,2]
[315967584,1709305896811,-500.0,0.00022794,2]
[315967585,1709305896821,-500.0,0.00022794,2]
[315967586,1709305896831,-567.34,0.00022794,2]
[315967587,1709305896840,-500.0,0.00022794,2]
[315967588,1709305896851,-500.0,0.00022794,2]
[315967589,1709305896860,-500.0,0.00022794,2]
[315967590,1709305896870,-150.0,0.00022797,2]
[315967591,1709305896879,-500.0,0.00022798,2]
[315967592,1709305896888,-150.0,0.00022798,2]
[315967593,1709305896898,-5980.35948538,0.00022799,2]
[315967594,1709305896907,-5980.35948533,0.00022799,2]
[315967595,1709305896916,-5980.35948533,0.00022799,2]
[315967596,1709305896926,-5980.35948533,0.00022799,2]
[315967597,1709305896935,-5980.35948533,0.00022799,2]
[315967598,1709305896944,-5980.35948533,0.00022799,2]
[315967599,1709305896954,-5980.35948533,0.00022799,2]
[315967600,1709305896965,-5980.35948533,0.00022799,2]
[315967601,1709305896975,-5980.35948533,0.00022799,2]
[315967602,1709305896985,-500.0,0.00022799,2]
[315967603,1709305896996,-150.0,0.00022799,2]
[315967604,1709305897005,-150.0,0.00022801,2]
[315967605,1709305897015,-150.0,0.00022802,2]
[315967606,1709305897024,-150.0,0.00022807,2]
[315967607,1709305897036,-150.0,0.00022808,2]
[315967608,1709305897046,-800.0,0.00022815,2]
[315967609,1709305897055,-150.0,0.00022832,2]
[315967610,1709305897064,-150.0,0.00022839,2]
[315967611,1709305897074,-150.0,0.00022839,2]
[315967612,1709305897083,-199.69,0.00022841,2]
[315967613,1709305897092,-204.92,0.00022841,2]
[315967614,1709305897102,-150.0,0.00022846,2]
[315967615,1709305897112,-150.0,0.00022847,2]
[315967616,1709305897121,-150.0,0.00022848,2]
[315967617,1709305897130,-150.0,0.00022848,2]
[315967618,1709305897140,-150.0,0.0002285,2]
[315967619,1709305897150,-150.0,0.00022853,2]
[315967620,1709305897159,-150.0,0.00022855,2]
[315967621,1709305897168,-158.24,0.00022857,2]
[315967622,1709305897178,-150.0,0.00022858,2]
[315967623,1709305897187,-150.0,0.00022858,2]
[315967624,1709305897196,-150.0,0.00022863,2]
[315967625,1709305897205,-150.0,0.00022864,2]
[315967626,1709305897214,-150.0,0.00022868,2]
[315967627,1709305897223,-150.0,0.0002287,2]
[315967628,1709305897233,-150.0,0.00022877,2]
[315967629,1709305897242,-150.0,0.00022881,2]
[315967630,1709305897251,-150.0,0.00022881,2]
[315967631,1709305897262,-150.0,0.00022882,2]
[315967632,1709305897272,-150.0,0.00022885,2]
[315967633,1709305897283,-150.0,0.0002289,2]
[315967634,1709305897293,-150.0,0.00022891,2]
[315967635,1709305897303,-150.0,0.00022891,2]
[315967636,1709305897312,-5800.0,0.00022892,2]
[315967637,1709305897321,-300.0,0.00022893,2]
[315967638,1709305897330,-2931.69224394,0.00022899,2]
[315967639,1709305897339,-500.0,0.00022899,2]
[315967640,1709305897349,-160.0,0.000229,2]
[315967641,1709305897358,-5800.0,0.000229,2]
[315967642,1709305897368,-529.67134245,0.000229,2]
[315967643,1709305897379,-529.67134245,0.000229,2]
[315967644,1709305897390,-529.67134245,0.000229,2]
[315967645,1709305897400,-529.67134245,0.000229,2]
[315967646,1709305897409,-155.09718372,0.000229,2]
[315967647,1709305897418,-529.67134245,0.000229,2]
[315967648,1709305897428,-529.67134245,0.000229,2]
[315967649,1709305897437,-529.67134245,0.000229,2]
[315967650,1709305897446,-529.67134245,0.000229,2]
[315967651,1709305897456,-529.67134245,0.000229,2]
[315967652,1709305897467,-529.67134245,0.000229,2]
[315967653,1709305897476,-529.67134245,0.000229,2]
[315967654,1709305897485,-12801.65009638,0.000229,2]
[315967655,1709305897494,-529.67134245,0.000229,2]
[315967656,1709305897503,-529.67134245,0.000229,2]
[315967657,1709305897512,-529.67134245,0.000229,2]
[315967658,1709305897522,-5980.35948533,0.000229,2]
[315967659,1709305897533,-175.91897246,0.000229,2]
[315967660,1709305897543,-150.0,0.00022903,2]
[315967661,1709305897553,-500.0,0.00022904,2]
[315967662,1709305897562,-500.0,0.00022904,2]
[315967663,1709305897571,-500.0,0.00022904,2]
[315967664,1709305897580,-500.0,0.00022904,2]
[315967665,1709305897590,-500.0,0.00022904,2]
[315967666,1709305897599,-500.0,0.00022904,2]
[315967667,1709305897608,-500.0,0.00022904,2]
[315967668,1709305897617,-500.0,0.00022904,2]
[315967669,1709305897626,-500.0,0.00022904,2]
[315967670,1709305897636,-500.0,0.00022904,2]
[315967671,1709305897645,-500.0,0.00022904,2]
[315967672,1709305897654,-906.74,0.00022904,2]
[315967673,1709305897663,-500.0,0.00022904,2]
[315967674,1709305897673,-500.0,0.00022904,2]
[315967675,1709305897682,-500.0,0.00022904,2]
[315967676,1709305897691,-186.78048593,0.00022904,2]
[315967677,1709305897700,-500.0,0.00022904,2]
[315967678,1709305897709,-500.0,0.00022904,2]
[315967679,1709305897718,-500.0,0.00022904,2]
[315967680,1709305897727,-500.0,0.00022904,2]
[315967681,1709305897737,-500.0,0.00022904,2]
[315967682,1709305897745,-324.32,0.00022904,2]
[315967683,1709305897754,-500.0,0.00022904,2]
[315967684,1709305897763,-500.0,0.00022904,2]
[315967685,1709305897772,-578.25,0.00022904,2]
[315967686,1709305897784,-500.0,0.00022904,2]
[315967687,1709305897793,-645.02,0.00022904,2]
[315967688,1709305897802,-500.0,0.00022904,2]
[315967689,1709305897812,-500.0,0.00022904,2]
[315967690,1709305897821,-751.68,0.00022904,2]
[315967691,1709305897830,-500.0,0.00022904,2]
[315967692,1709305897841,-500.0,0.00022904,2]
[315967693,1709305897850,-500.0,0.00022904,2]
[315967694,1709305897859,-500.0,0.00022904,2]
[315967695,1709305897868,-500.0,0.00022904,2]
[315967696,1709305897878,-500.0,0.00022904,2]
[315967697,1709305897887,-500.0,0.00022904,2]
[315967698,1709305897896,-971.26,0.00022904,2]
[315967699,1709305897907,-500.0,0.00022904,2]
[315967700,1709305897918,-919.98,0.00022904,2]
[315967701,1709305897927,-500.0,0.00022904,2]
[315967702,1709305897938,-573.56,0.00022904,2]
[315967703,1709305897947,-413.95883305,0.00022904,2]
[315967704,1709305897956,-500.0,0.00022904,2]
[315967705,1709305897965,-500.0,0.00022904,2]
[315967706,1709305897975,-500.0,0.00022904,2]
[315967707,1709305897985,-500.0,0.00022904,2]
[315967708,1709305897994,-737.77,0.00022904,2]
[315967709,1709305898003,-500.0,0.00022904,2]
[315967710,1709305898012,-500.0,0.00022904,2]
[315967711,1709305898023,-245.66527497,0.00022904,2]
[315967712,1709305898035,-500.0,0.00022904,2]
[315967713,1709305898043,-500.0,0.00022904,2]
[315967714,1709305898053,-782.71,0.00022904,2]
[315967715,1709305898062,-500.0,0.00022904,2]
[315967716,1709305898071,-500.0,0.00022904,2]
[315967717,1709305898081,-742.5,0.00022904,2]
[315967718,1709305898092,-500.0,0.00022904,2]
[315967719,1709305898101,-500.0,0.00022904,2]
[315967720,1709305898110,-500.0,0.00022904,2]
[315967721,1709305898120,-516.61,0.00022904,2]
[315967722,1709305898129,-500.0,0.00022904,2]
[315967723,1709305898138,-500.0,0.00022904,2]
[315967724,1709305898147,-500.0,0.00022904,2]
[315967725,1709305898157,-500.0,0.00022904,2]
[315967726,1709305898166,-300.14830303,0.00022904,2]
[315967727,1709305898176,-500.0,0.00022904,2]
[315967728,1709305898186,-707.6,0.00022904,2]
[315967729,1709305898196,-780.2,0.00022904,2]
[315967730,1709305898206,-500.0,0.00022904,2]
[315967731,1709305898215,-500.0,0.00022904,2]
[315967732,1709305898224,-500.0,0.00022904,2]
[315967733,1709305898234,-500.0,0.00022904,2]
[315967734,1709305898243,-500.0,0.00022904,2]
[315967735,1709305898252,-500.0,0.00022904,2]
[315967736,1709305898262,-504.09,0.00022904,2]
[315967737,1709305898271,-500.0,0.00022904,2]
[315967738,1709305898282,-500.0,0.00022904,2]
[315967739,1709305898291,-500.0,0.00022904,2]
[315967740,1709305898301,-600.18,0.00022904,2]
[315967741,1709305898310,-500.0,0.00022904,2]
[315967742,1709305898320,-500.0,0.00022904,2]
[315967743,1709305898330,-500.0,0.00022904,2]
[315967744,1709305898339,-546.1,0.00022904,2]
[315967745,1709305898349,-532.41,0.00022904,2]
[315967746,1709305898359,-734.54,0.00022904,2]
[315967747,1709305898370,-529.48,0.00022904,2]
[315967748,1709305898379,-500.0,0.00022904,2]
[315967749,1709305898388,-500.0,0.00022904,2]
[315967750,1709305898398,-500.0,0.00022904,2]
[315967751,1709305898407,-639.25,0.00022904,2]
[315967752,1709305898417,-584.03,0.00022904,2]
[315967753,1709305898426,-500.0,0.00022904,2]
[315967754,1709305898436,-500.0,0.00022904,2]
[315967755,1709305898447,-550.42,0.00022904,2]
[315967756,1709305898457,-514.22,0.00022904,2]
[315967757,1709305898466,-500.0,0.00022904,2]
[315967758,1709305898475,-500.0,0.00022904,2]
[315967759,1709305898485,-613.29,0.00022904,2]
[315967760,1709305898495,-500.0,0.00022904,2]
[315967761,1709305898505,-500.0,0.00022904,2]
[315967762,1709305898514,-518.84,0.00022904,2]
[315967763,1709305898524,-500.0,0.00022904,2]
[315967764,1709305898537,-273.28,0.00022904,2]
[315967765,1709305898547,-500.0,0.00022904,2]
[315967766,1709305898556,-500.0,0.00022904,2]
[315967767,1709305898566,-500.0,0.00022904,2]
[315967768,1709305898575,-607.56,0.00022904,2]
[315967769,1709305898585,-500.0,0.00022904,2]
[315967770,1709305898594,-999.79,0.00022904,2]
[315967771,1709305898604,-772.36,0.00022904,2]
[315967772,1709305898613,-500.0,0.00022904,2]
[315967773,1709305898623,-500.0,0.00022904,2]
[315967774,1709305898633,-500.0,0.00022904,2]
[315967775,1709305898642,-500.0,0.00022904,2]
[315967776,1709305898652,-502.86,0.00022904,2]
[315967777,1709305898661,-795.21,0.00022904,2]
[315967778,1709305898670,-500.0,0.00022904,2]
[315967779,1709305898680,-1168.03,0.00022904,2]
[315967780,1709305898690,-500.0,0.00022904,2]
[315967781,1709305898699,-500.0,0.00022904,2]
[315967782,1709305898709,-324.42,0.00022904,2]
[315967783,1709305898718,-500.0,0.00022904,2]
[315967784,1709305898727,-788.32,0.00022904,2]
[315967785,1709305898736,-544.82,0.00022904,2]
[315967786,1709305898746,-500.0,0.00022904,2]
[315967787,1709305898755,-500.0,0.00022904,2]
[315967788,1709305898764,-500.0,0.00022904,2]
[315967789,1709305898774,-500.0,0.00022904,2]
[315967790,1709305898787,-500.0,0.00022904,2]
[315967791,1709305898796,-500.0,0.00022904,2]
[315967792,1709305898806,-500.0,0.00022904,2]
[315967793,1709305898815,-731.75,0.00022904,2]
[315967794,1709305898824,-500.0,0.00022904,2]
[315967795,1709305898833,-500.0,0.00022904,2]
[315967796,1709305898842,-500.0,0.00022904,2]
[315967797,1709305898852,-500.0,0.00022904,2]
[315967798,1709305898860,-989.93,0.00022904,2]
[315967799,1709305898870,-1062.73,0.00022904,2]
[315967800,1709305898878,-500.0,0.00022904,2]
[315967801,1709305898888,-823.27,0.00022904,2]
[315967802,1709305898897,-389.20090536,0.00022904,2]
[315967803,1709305898907,-500.0,0.00022904,2]
[315967804,1709305898916,-500.0,0.00022904,2]
[315967805,1709305898925,-500.0,0.00022904,2]
[315967806,1709305898934,-500.0,0.00022904,2]
[315967807,1709305898944,-791.01,0.00022904,2]
[315967808,1709305898956,-500.0,0.00022904,2]
[315967809,1709305898965,-500.0,0.00022904,2]
[315967810,1709305899138,-1594.75,0.00022904,2]
[315967811,1709305899149,-500.0,0.00022904,2]
[315967812,1709305899159,-505.03,0.00022904,2]
[315967813,1709305899168,-747.13,0.00022904,2]
[315967814,1709305899177,-225.12,0.00022904,2]
[315967815,1709305899187,-534.78,0.00022904,2]
[315967816,1709305899196,-1220.65,0.00022904,2]
[315967817,1709305899205,-740.01,0.00022904,2]
[315967818,1709305899214,-1099.67,0.00022904,2]
[315967819,1709305899223,-500.0,0.00022904,2]
[315967820,1709305899233,-674.07,0.00022904,2]
[315967821,1709305899242,-5580.51,0.00022904,2]
[315967822,1709305899251,-500.0,0.00022904,2]
[315967823,1709305899260,-5289.69,0.00022904,2]
[315967824,1709305899269,-681.13,0.00022904,2]
[315967825,1709305899281,-4403.01,0.00022904,2]
[315967826,1709305899290,-1257.15,0.00022904,2]
[315967827,1709305899299,-500.0,0.00022904,2]
[315967828,1709305899308,-857.05,0.00022904,2]
[315967829,1709305899317,-590.84,0.00022904,2]
[315967830,1709305899327,-1083.41,0.00022904,2]
[315967831,1709305899336,-500.0,0.00022904,2]
[315967832,1709305899346,-755.22,0.00022904,2]
[315967833,1709305899358,-500.0,0.00022904,2]
[315967834,1709305899367,-1214.42,0.00022904,2]
[315967835,1709305899377,-500.0,0.00022904,2]
[315967836,1709305899387,-3690.87,0.00022904,2]
[315967837,1709305899397,-3371.79,0.00022904,2]
[315967838,1709305899406,-1351.2,0.00022904,2]
[315967839,1709305899417,-510.46767262,0.00022904,2]
[315967840,1709305899427,-803.59,0.00022904,2]
[315967841,1709305899437,-646.81,0.00022904,2]
[315967842,1709305899448,-417.63506585,0.00022904,2]
[315967843,1709305899457,-500.0,0.00022904,2]
[315967844,1709305899466,-726.61,0.00022904,2]
[315967845,1709305899476,-727.86,0.00022904,2]
[315967846,1709305899485,-2141.73,0.00022904,2]
[315967847,1709305899494,-500.0,0.00022904,2]
[315967848,1709305899503,-559.99,0.00022904,2]
[315967849,1709305899513,-500.0,0.00022904,2]
[315967850,1709305899522,-2298.42,0.00022904,2]
[315967851,1709305899533,-1036.68,0.00022904,2]
[315967852,1709305899542,-151.0,0.00022904,7]
[315967853,1709305899552,-500.0,0.00022904,2]
[315967854,1709305899562,-1315.55,0.00022904,2]
[315967855,1709305899571,-500.0,0.00022904,2]
[315967856,1709305899580,-500.0,0.00022904,2]
[315967857,1709305899590,-870.51,0.00022904,2]
[315967858,1709305899600,-693.44,0.00022904,2]
[315967859,1709305899609,-500.0,0.00022904,2]
[315967860,1709305899619,-895.66,0.00022904,2]
[315967861,1709305899632,-735.48,0.00022904,2]
[315967862,1709305899642,-5334.59,0.00022904,2]
[315967863,1709305899652,-881.39,0.00022904,2]
[315967864,1709305899661,-1134.58,0.00022904,2]
[315967865,1709305899670,-1102.85,0.00022904,2]
[315967866,1709305899679,-500.0,0.00022904,2]
[315967867,1709305899688,-772.72,0.00022904,2]
[315967868,1709305899697,-3217.72,0.00022904,2]
[315967869,1709305899706,-151.0,0.00022904,7]
[315967870,1709305899715,-674.03,0.00022904,2]
[315967871,1709305899725,-734.83,0.00022904,2]
[315967872,1709305899734,-4071.64,0.00022904,2]
[315967873,1709305899743,-151.0,0.00022904,7]
[315967874,1709305899752,-500.0,0.00022904,2]
[315967875,1709305899761,-1336.48,0.00022904,2]
[315967876,1709305899771,-500.0,0.00022904,2]
[315967877,1709305899781,-6633.72,0.00022904,2]
[315967878,1709305899790,-2034.0,0.00022904,2]
[315967879,1709305899800,-500.0,0.00022904,2]
[315967880,1709305899810,-653.13,0.00022904,2]
[315967881,1709305899820,-1007.25,0.00022904,2]
[315967882,1709305899828,-500.0,0.00022904,2]
[315967883,1709305899838,-1531.1,0.00022904,2]
[315967884,1709305899847,-1199.02,0.00022904,2]
[315967885,1709305899855,-1053.76,0.00022904,2]
[315967886,1709305899864,-880.94,0.00022904,2]
[315967887,1709305899873,-7052.62,0.00022904,2]
[315967888,1709305899882,-296.997032,0.00022904,7]
[315967889,1709305899892,-793.6,0.00022904,2]
[315967890,1709305899901,-4970.95,0.00022904,2]
[315967891,1709305899910,-296.997032,0.00022904,7]
[315967892,1709305899919,-567.08,0.00022904,2]
[315967893,1709305899927,-1404.44,0.00022904,2]
[315967894,1709305899936,-1716.84,0.00022904,2]
[315967895,1709305899946,-1301.46,0.00022904,2]
[315967896,1709305899956,-500.0,0.00022904,2]
[315967897,1709305899965,-632.56,0.00022904,2]
[315967898,1709305899974,-844.86,0.00022904,2]
[315967899,1709305899983,-1873.71,0.00022904,2]
[315967900,1709305899993,-500.0,0.00022904,2]
[315967901,1709305900002,-1094.87,0.00022904,2]
[315967902,1709305900011,-543.71,0.00022904,2]
[315967903,1709305900021,-1253.26,0.00022904,2]
[315967904,1709305900032,-1348.78,0.00022904,2]
[315967905,1709305900041,-829.71,0.00022904,2]
[315967906,1709305900050,-517.7,0.00022904,2]
[315967907,1709305900059,-1978.87,0.00022904,2]
[315967908,1709305900068,-500.0,0.00022904,2]
[315967909,1709305900077,-5780.97,0.00022904,2]
[315967910,1709305900086,-500.0,0.00022904,2]
[315967911,1709305900095,-1128.32,0.00022904,2]
[315967912,1709305900116,-1360.34,0.00022904,2]
[315967913,1709305900126,-595.79,0.00022904,2]
[315967914,1709305900135,-503.67,0.00022904,2]
[315967915,1709305900143,-900.35,0.00022904,2]
[315967916,1709305900152,-543.27,0.00022904,2]
[315967917,1709305900161,-151.0,0.00022904,7]
[315967918,1709305900170,-500.0,0.00022904,2]
[315967919,1709305900179,-500.0,0.00022904,2]
[315967920,1709305900188,-655.83,0.00022904,2]
[315967921,1709305900197,-540.91,0.00022904,2]
[315967922,1709305900206,-758.75,0.00022904,2]
[315967923,1709305900215,-1186.06,0.00022904,2]
[315967924,1709305900224,-1195.58,0.00022904,2]
[315967925,1709305900233,-817.92,0.00022904,2]
[315967926,1709305900242,-1397.92,0.00022904,2]
[315967927,1709305900251,-947.48,0.00022904,2]
[315967928,1709305900260,-500.0,0.00022904,2]
[315967929,1709305900269,-889.25,0.00022904,2]
[315967930,1709305900279,-558.86,0.00022904,2]
[315967931,1709305900289,-654.16,0.00022904,2]
[315967932,1709305900298,-508.24,0.00022904,2]
[315967933,1709305900307,-886.02,0.00022904,2]
[315967934,1709305900316,-928.68,0.00022904,2]
[315967935,1709305900325,-500.0,0.00022904,2]
[315967936,1709305900334,-1331.87,0.00022904,2]
[315967937,1709305900343,-500.0,0.00022904,2]
[315967938,1709305900353,-2216.85,0.00022904,2]
[315967939,1709305900363,-1288.14,0.00022904,2]
[315967940,1709305900377,-1254.88,0.00022904,2]
[315967941,1709305900386,-500.0,0.00022904,2]
[315967942,1709305900399,-782.75,0.00022904,2]
[315967943,1709305900409,-500.0,0.00022904,2]
[315967944,1709305900419,-641.49,0.00022904,2]
[315967945,1709305900428,-1350.32,0.00022904,2]
[315967946,1709305900438,-985.98,0.00022904,2]